bitfinex-derivatives/quotes_BTCF0:USTF0_20240913
["timestamp","ask_amount","ask_price","bid_price","bid_amount"]
[1726220514172,0.2633,58176.0,58175.0,0.002]
[1726220514378,0.6241,58176.0,58175.0,0.002]
[1726220516164,0.6241,58176.0,58175.0,0.087951]
[1726220516165,0.69939296,58176.0,58175.0,0.087951]
[1726220518271,0.69939296,58176.0,58175.0,0.002]
[1726220519076,0.33859296,58176.0,58175.0,0.002]
[1726220519271,0.69939296,58176.0,58175.0,0.002]
[1726220519683,0.75215152,58176.0,58175.0,0.002]
[1726220519883,0.83810152,58176.0,58175.0,0.002]
[1726220520281,0.171926,58167.0,58166.0,0.008]
[1726220520577,0.07529591,58167.0,58166.0,0.12]
[1726220520778,0.2987294,58167.0,58166.0,0.205965]
[1726220520979,0.16125891,58167.0,58166.0,0.205965]
[1726220521682,0.16125891,58167.0,58166.0,0.206965]
[1726220521881,0.07529591,58167.0,58166.0,0.206965]
[1726220522080,0.07529452,58167.0,58166.0,0.206965]
[1726220522382,0.03320261,58167.0,58166.0,0.29293]
[1726220522587,0.03320261,58167.0,58166.0,0.207965]
[1726220522588,0.03320193,58167.0,58166.0,0.207965]
[1726220522884,0.22742749,58172.0,58171.0,0.085957]
[1726220523077,0.16124781,58172.0,58171.0,0.085957]
[1726220523279,0.0429543,58172.0,58171.0,0.20575273]
[1726220523478,0.085952,58175.0,58174.0,0.085953]
[1726220523674,0.085952,58175.0,58174.0,0.32574873]
[1726220524284,0.085952,58175.0,58174.0,0.41117417]
[1726220524889,0.093952,58175.0,58174.0,0.41117417]
[1726220525389,0.093952,58175.0,58174.0,0.32574873]
[1726220526382,0.101952,58175.0,58174.0,0.32674873]
[1726220527593,0.016,58175.0,58174.0,0.77350173]
[1726220527782,0.085947,58178.0,58177.0,0.085948]
[1726220527989,0.085947,58178.0,58177.0,0.32574373]
[1726220528488,0.085947,58178.0,58177.0,0.4282279]
[1726220529879,0.107947,58178.0,58177.0,0.4302279]
[1726220530683,0.107947,58178.0,58177.0,0.32774373]
[1726220531179,0.18349246,58178.0,58177.0,0.207948]
[1726220531379,0.24542189,58178.0,58177.0,0.207948]
[1726220531580,0.32096735,58178.0,58177.0,0.207948]
[1726220531777,0.32096306,58178.0,58177.0,0.207948]
[1726220533794,0.32096306,58178.0,58177.0,0.087948]
[1726220533993,0.32096306,58178.0,58177.0,0.207948]
[1726220535492,0.23624087,58178.0,58177.0,0.207948]
[1726220538190,0.107947,58178.0,58177.0,0.32705754]
[1726220540586,0.022,58178.0,58177.0,0.41300554]
[1726220540790,0.022,58178.0,58177.0,0.51548971]
[1726220541087,0.107947,58178.0,58177.0,0.20705754]
[1726220541594,0.107947,58178.0,58177.0,0.17326287]
[1726220542687,0.107947,58178.0,58177.0,0.087948]
[1726220542887,0.193894,58178.0,58177.0,0.087948]
[1726220550605,0.193894,58178.0,58177.0,0.17326287]
[1726220551401,0.193894,58178.0,58177.0,0.29258003]
[1726220553394,0.26925276,58178.0,58177.0,0.087948]
[1726220553605,0.40661675,58178.0,58177.0,0.087948]
[1726220553796,0.40661675,58178.0,58177.0,0.207948]
[1726220553998,0.40661675,58178.0,58177.0,0.002]
[1726220554199,0.32200898,58178.0,58177.0,0.002]
[1726220556313,0.3220535,58178.0,58177.0,0.002]
[1726220557096,0.3220535,58178.0,58177.0,0.087948]
[1726220558508,0.6828535,58178.0,58177.0,0.087948]
[1726220559406,0.3220535,58178.0,58177.0,0.087948]
[1726220559612,0.6828535,58178.0,58177.0,0.087948]
[1726220560617,0.3220535,58178.0,58177.0,0.087948]
[1726220560813,0.6828535,58178.0,58177.0,0.087948]
[1726220561317,0.554694,58178.0,58177.0,0.20734596]
[1726220561515,0.468747,58178.0,58177.0,0.20734596]
[1726220561915,0.107947,58178.0,58177.0,0.20734596]
[1726220562212,0.468747,58178.0,58177.0,0.20734596]
[1726220562604,0.107947,58178.0,58177.0,0.20734596]
[1726220562817,0.022,58178.0,58177.0,0.29329396]
[1726220563406,0.085945,58180.0,58179.0,0.085945]
[1726220563607,0.085945,58180.0,58179.0,0.42779161]
[1726220563806,0.08594,58183.0,58182.0,0.08594]
[1726220564114,0.08594,58183.0,58182.0,0.32533796]
[1726220565128,0.17188,58183.0,58182.0,0.20477976]
[1726220565414,0.171886,58181.0,58180.0,0.0853818]
[1726220565619,0.171886,58181.0,58180.0,0.20449802]
[1726220566013,0.171886,58181.0,58180.0,0.29047535]
[1726220566620,0.171886,58181.0,58180.0,0.29147535]
[1726220567017,0.171886,58181.0,58180.0,0.29247535]
[1726220568521,0.30027728,58181.0,58180.0,0.087944]
[1726220569013,0.66107728,58181.0,58180.0,0.087944]
[1726220571517,0.30027728,58181.0,58180.0,0.087944]
[1726220571713,0.66107728,58181.0,58180.0,0.087944]
[1726220574114,0.66107728,58181.0,58180.0,0.002]
[1726220576311,0.532686,58181.0,58180.0,0.002]
[1726220577220,0.171886,58181.0,58180.0,0.002]
[1726220577619,0.532686,58181.0,58180.0,0.002]
[1726220578022,0.652686,58181.0,58180.0,0.002]
[1726220579518,0.738629,58181.0,58180.0,0.002]
[1726220579718,0.085944,58180.0,58179.0,0.0853818]
[1726220580028,0.17189,58179.0,58178.0,2.8e-07]
[1726220580324,0.25785,58176.0,58175.0,0.0853818]
[1726220580623,0.97785,58176.0,58175.0,0.0853818]
[1726220580929,0.171908,58173.0,58172.0,0.004]
[1726220581117,0.085957,58171.0,58170.0,0.0853818]
[1726220581424,0.085959,58170.0,58169.0,0.0853818]
[1726220581622,0.085959,58170.0,58169.0,0.20493691]
[1726220581623,0.31165232,58170.0,58169.0,0.20493691]
[1726220582016,0.31165232,58170.0,58169.0,0.0853818]
[1726220582217,0.08596,58169.0,58168.0,0.0853818]
[1726220582423,0.08596,58169.0,58168.0,0.20414278]
[1726220583025,0.08596,58169.0,58168.0,0.20414197]
[1726220583328,0.08596,58169.0,58168.0,0.11876017]
[1726220583521,0.08596,58169.0,58168.0,0.08539761]
[1726220583922,0.085963,58167.0,58166.0,0.085964]
[1726220584124,0.16210395,58167.0,58166.0,0.085964]
[1726220584633,0.29948266,58167.0,58166.0,0.085964]
[1726220585326,0.16210395,58167.0,58166.0,0.085964]
[1726220585523,0.2994517,58167.0,58166.0,0.088964]
[1726220585728,0.2994517,58167.0,58166.0,0.090964]
[1726220587033,0.2134887,58167.0,58166.0,0.210964]
[1726220587225,0.03404526,58167.0,58166.0,0.210964]
[1726220587428,0.03404526,58167.0,58166.0,0.296929]
[1726220587635,0.12014163,58172.0,58171.0,0.085957]
[1726220587832,0.03440111,58172.0,58171.0,0.652714]
[1726220588132,0.03448588,58172.0,58171.0,0.652714]
[1726220588319,0.03448588,58172.0,58171.0,1.168434]
[1726220588921,0.03748588,58172.0,58171.0,1.168434]
[1726220589121,0.04048588,58172.0,58171.0,1.168434]
[1726220591037,0.006,58172.0,58171.0,1.38903335]
[1726220591524,0.006,58172.0,58171.0,1.38890343]
[1726220591921,0.006,58172.0,58171.0,0.87318343]
[1726220592835,0.006,58172.0,58171.0,0.77086813]
[1726220593140,0.006,58172.0,58171.0,0.8726549]
[1726220593332,0.004,58177.0,58176.0,0.08595]
[1726220593534,0.085945,58180.0,58176.0,0.4808]
[1726220593836,0.085945,58180.0,58179.0,0.12]
[1726220594635,0.090945,58180.0,58179.0,0.12]
[1726220594842,0.090945,58180.0,58179.0,0.205945]
[1726220595237,0.096945,58180.0,58179.0,0.207945]
[1726220597331,0.096945,58180.0,58179.0,0.087945]
[1726220598938,0.096945,58180.0,58179.0,0.13911107]
[1726220606043,0.096945,58180.0,58176.0,0.32965532]
[1726220606044,0.226308,58180.0,58176.0,0.32965532]
[1726220606345,0.085947,58178.0,58177.0,0.085948]
[1726220606533,0.21531,58178.0,58177.0,0.085948]
[1726220608143,0.21931,58178.0,58177.0,0.086948]
[1726220608338,0.308258,58178.0,58177.0,0.087948]
[1726220609544,0.308258,58178.0,58177.0,0.002]
[1726220611838,0.32361688,58178.0,58177.0,0.002]
[1726220612641,0.322299,58178.0,58177.0,0.002]
[1726220614039,0.19425388,58178.0,58177.0,0.002]
[1726220615443,0.19425388,58178.0,58177.0,0.08726424]
[1726220616437,0.19425388,58178.0,58177.0,0.12208602]
[1726220617631,0.19425388,58178.0,58177.0,0.12211053]
[1726220620544,0.28020188,58178.0,58177.0,0.12211053]
[1726220621142,0.28020188,58178.0,58177.0,0.002]
[1726220628051,0.40825092,58178.0,58177.0,0.002]
[1726220628549,0.76905092,58178.0,58177.0,0.002]
[1726220628757,0.8306976,58178.0,58177.0,0.002]
[1726220632454,0.83070391,58178.0,58177.0,0.002]
[1726220636265,0.64100188,58178.0,58177.0,0.002]
[1726220640066,0.64100188,58178.0,58177.0,0.07031642]
[1726220640263,0.453747,58178.0,58177.0,0.087948]
[1726220640764,0.573747,58178.0,58177.0,0.087948]
[1726220643167,0.70179538,58178.0,58177.0,0.087948]
[1726220651164,0.573747,58178.0,58177.0,0.17335642]
[1726220652063,0.659695,58178.0,58177.0,0.08740842]
[1726220652260,0.745643,58178.0,58177.0,0.08740842]
[1726220652568,0.745643,58178.0,58177.0,0.002]
[1726220655469,0.659695,58178.0,58177.0,0.002]
[1726220658072,0.77410154,58178.0,58177.0,0.002]
[1726220658268,0.8493947,58178.0,58177.0,0.002]
[1726220665692,0.84939469,58178.0,58177.0,0.002]
[1726220666198,0.659695,58178.0,58177.0,0.002]
[1726220669596,0.659695,58178.0,58177.0,0.08740842]
[1726220670800,0.298895,58178.0,58177.0,0.08740842]
[1726220671897,0.298895,58178.0,58177.0,0.002]
[1726220672098,0.298895,58178.0,58177.0,0.08740842]
[1726220672607,0.298895,58178.0,58177.0,0.002]
[1726220673194,0.48859468,58178.0,58177.0,0.002]
[1726220673809,0.36054296,58178.0,58177.0,0.002]
[1726220674006,0.48859468,58178.0,58177.0,0.002]
[1726220676007,0.36859468,58178.0,58177.0,0.002]
[1726220676709,0.28264668,58178.0,58177.0,0.087948]
[1726220680609,0.28264345,58178.0,58177.0,0.087948]
[1726220681215,0.092947,58178.0,58177.0,0.087948]
[1726220684211,0.178894,58178.0,58177.0,0.002]
[1726220684611,0.178894,58178.0,58177.0,0.07035663]
[1726220687923,0.539694,58178.0,58177.0,0.07035663]
[1726220688122,0.539694,58178.0,58177.0,0.002]
[1726220696231,0.72940167,58178.0,58177.0,0.002]
[1726220696730,0.91850602,58178.0,58177.0,0.002]
[1726220697234,0.72940167,58178.0,58177.0,0.002]
[1726220697530,0.91850381,58178.0,58177.0,0.002]
[1726220699929,0.66775111,58178.0,58177.0,0.002]
[1726220700631,0.6677511,58178.0,58177.0,0.002]
[1726220703217,0.539694,58178.0,58177.0,0.07035663]
[1726220704225,0.659694,58178.0,58177.0,0.002]
[1726220705330,0.659694,58178.0,58177.0,0.07033388]
[1726220708427,0.659694,58178.0,58177.0,0.002]
[1726220711238,0.8494017,58178.0,58177.0,0.002]
[1726220713444,0.085953,58174.0,58173.0,0.004]
[1726220713635,0.085959,58170.0,58168.0,0.085961]
[1726220713828,0.25796458,58170.0,58168.0,0.085961]
[1726220714143,0.15320409,58173.0,58168.0,0.085961]
[1726220714144,0.21402024,58169.0,58168.0,0.085961]
[1726220715837,0.21402024,58169.0,58168.0,0.086961]
[1726220717232,0.21402024,58169.0,58168.0,0.085961]
[1726220717643,0.38602582,58169.0,58168.0,0.085961]
[1726220718345,0.21496116,58169.0,58168.0,0.35036291]
[1726220722154,0.17200558,58169.0,58168.0,0.35036291]
[1726220723646,0.17200558,58169.0,58168.0,0.35030171]
[1726220724441,0.085958,58171.0,58170.0,0.085959]
[1726220724741,0.085958,58171.0,58170.0,0.3265545]
[1726220725639,0.087958,58171.0,58170.0,0.3265545]
[1726220726139,0.089958,58171.0,58170.0,0.3265545]
[1726220727333,0.089958,58171.0,58170.0,0.429096]
[1726220729238,0.089958,58171.0,58170.0,0.44394099]
[1726220733348,0.21801571,58171.0,58170.0,0.22080399]
[1726220737551,0.38998934,58171.0,58170.0,0.22080399]
[1726220738350,0.38998936,58171.0,58170.0,0.22080399]
[1726220741467,0.46788763,58171.0,58170.0,0.22323798]
[1726220743355,0.82868763,58171.0,58170.0,0.12069648]
[1726220744665,0.656714,58171.0,58170.0,0.12069648]
[1726220746163,0.656714,58171.0,58170.0,0.20618699]
[1726220746352,0.742671,58171.0,58170.0,0.20618699]
[1726220746561,0.742671,58171.0,58169.0,0.08549051]
[1726220746562,0.171918,58170.0,58169.0,0.08549051]
[1726220746864,0.17192,58169.0,58168.0,0.08549051]
[1726220747068,0.36542,58169.0,58168.0,0.20622829]
[1726220747256,0.36542,58169.0,58168.0,0.08549051]
[1726220748557,0.085963,58167.0,58166.0,0.3608]
[1726220748759,0.16126505,58167.0,58166.0,0.3608]
[1726220750067,0.085968,58164.0,58163.0,0.01480304]
[1726220750269,0.1191738,58164.0,58162.0,0.44677]
[1726220750466,0.0332058,58163.0,58162.0,0.44677]
[1726220750769,0.0332058,58163.0,58162.0,0.46159552]
[1726220751069,0.0332058,58163.0,58162.0,0.10079552]
[1726220751365,0.0332058,58163.0,58162.0,0.46159552]
[1726220751767,0.0332058,58163.0,58162.0,0.10079552]
[1726220751967,0.0332058,58163.0,58162.0,0.46159552]
[1726220752359,0.0332058,58163.0,58162.0,0.46859552]
[1726220752560,0.0332058,58163.0,58162.0,1.14199552]
[1726220752760,0.0332058,58163.0,58162.0,1.22796652]
[1726220752966,0.085962,58168.0,58167.0,0.085962]
[1726220753163,0.11916572,58168.0,58167.0,0.205962]
[1726220753568,0.16125925,58168.0,58167.0,0.205962]
[1726220753770,0.29872973,58168.0,58167.0,0.205962]
[1726220754760,0.29872973,58168.0,58167.0,0.206962]
[1726220755971,0.29872973,58168.0,58167.0,0.208962]
[1726220756479,0.12,58171.0,58167.0,0.47316605]
[1726220756672,0.085959,58170.0,58169.0,0.1884774]
[1726220756863,0.085959,58170.0,58169.0,0.30901055]
[1726220759068,0.086959,58170.0,58169.0,0.20649215]
[1726220759272,0.087959,58170.0,58169.0,0.20649215]
[1726220760976,0.087959,58170.0,58169.0,0.12053315]
[1726220761176,0.085962,58168.0,58164.0,0.08545972]
[1726220761362,0.171938,58163.0,58162.0,0.03575392]
[1726220761568,0.377907,58163.0,58162.0,0.03575392]
[1726220761874,0.085974,58160.0,58157.0,0.004]
[1726220762068,0.446776,58158.0,58157.0,0.004]
[1726220762268,0.532752,58158.0,58157.0,0.004]
[1726220763179,0.532752,58158.0,58153.0,0.0046]
[1726220763180,0.085982,58154.0,58149.0,0.004]
[1726220763365,0.085994,58146.0,58145.0,0.004]
[1726220763565,0.205994,58146.0,58143.0,0.3608]
[1726220763763,0.12,58147.0,58143.0,0.566798]
[1726220764870,0.12,58145.0,58143.0,0.446798]
[1726220765278,0.12,58145.0,58143.0,0.3608]
[1726220765478,0.12,58145.0,58143.0,0.3748]
[1726220766473,0.12,58145.0,58143.0,0.3888]
[1726220768371,0.12,58145.0,58143.0,0.474799]
[1726220768570,0.205996,58145.0,58143.0,0.474799]
[1726220768779,0.08599,58149.0,58144.0,0.085996]
[1726220768980,0.205994,58147.0,58144.0,0.085996]
[1726220769375,0.205994,58147.0,58145.0,0.085995]
[1726220769682,0.205994,58147.0,58146.0,0.05130913]
[1726220771474,0.205994,58147.0,58145.0,0.085995]
[1726220771675,0.085994,58146.0,58145.0,0.099995]
[1726220772278,0.085994,58146.0,58145.0,0.085995]
[1726220772888,0.085994,58146.0,58145.0,0.099995]
[1726220773086,0.085994,58146.0,58145.0,0.113995]
[1726220773586,0.004,58153.0,58152.0,0.085985]
[1726220773780,0.085984,58153.0,58152.0,0.085985]
[1726220774387,0.205984,58153.0,58152.0,0.085985]
[1726220774888,0.205984,58153.0,58152.0,0.1371262]
[1726220774889,0.16296595,58153.0,58152.0,0.1371262]
[1726220775071,0.16296595,58153.0,58152.0,0.1451262]
[1726220775888,0.16296595,58153.0,58152.0,0.1521262]
[1726220779080,0.16296595,58153.0,58152.0,0.100985]
[1726220779288,0.16296595,58153.0,58152.0,0.1521262]
[1726220780182,0.16296595,58153.0,58152.0,0.100985]
[1726220782379,0.24894995,58153.0,58152.0,0.015]
[1726220782587,0.33493395,58153.0,58152.0,0.015]
[1726220785203,1.45081395,58153.0,58152.0,0.015]
[1726220785889,0.171992,58145.0,58144.0,0.004]
[1726220786083,0.4808,58145.0,58139.0,0.0511412]
[1726220786391,0.086005,58139.0,58137.0,0.0511412]
[1726220786582,0.086013,58134.0,58132.0,0.004]
[1726220786782,0.12,58133.0,58129.0,0.086019]
[1726220786980,0.12,58130.0,58129.0,0.086019]
[1726220788699,0.106,58130.0,58129.0,0.086019]
[1726220789394,0.107,58130.0,58129.0,0.096019]
[1726220789694,0.107,58130.0,58129.0,0.018]
[1726220789695,0.194018,58130.0,58129.0,0.018]
[1726220790394,0.108,58130.0,58129.0,0.104019]
[1726220791594,0.194018,58130.0,58129.0,0.104019]
[1726220794297,0.002,58130.0,58129.0,0.104019]
[1726220794696,0.086017,58131.0,58130.0,0.086016]
[1726220794895,0.086017,58131.0,58130.0,0.206016]
[1726220795095,0.086017,58131.0,58130.0,0.086016]
[1726220795891,0.087017,58131.0,58130.0,0.100016]
[1726220796498,0.088017,58131.0,58130.0,0.104016]
[1726220803193,0.002,58131.0,58130.0,0.190034]
[1726220803496,0.002,58131.0,58130.0,0.104016]
[1726220805303,0.088016,58131.0,58130.0,0.104016]
[1726220806795,0.088016,58131.0,58130.0,0.39451658]
[1726220806796,0.002,58131.0,58130.0,0.39451658]
[1726220807207,0.002,58131.0,58130.0,0.39519736]
[1726220809112,0.002,58131.0,58130.0,0.75599736]
[1726220809405,0.086014,58133.0,58132.0,0.086015]
[1726220809707,0.086014,58133.0,58132.0,0.20516036]
[1726220810997,0.087014,58133.0,58132.0,0.21016036]
[1726220811799,0.001,58133.0,58132.0,0.29617536]
[1726220812012,0.002,58133.0,58132.0,0.47569036]
[1726220812214,0.002,58133.0,58132.0,0.61782966]
[1726220816707,0.002,58133.0,58132.0,0.356545]
[1726220820110,0.002,58133.0,58132.0,0.476545]
[1726220820904,0.002,58133.0,58132.0,0.52784656]
[1726220821309,0.002,58133.0,58132.0,0.476545]
[1726220824814,0.04697742,58139.0,58137.0,0.086008]
[1726220825012,0.04697742,58139.0,58138.0,0.1195171]
[1726220825515,0.04697742,58139.0,58138.0,0.2915285]
[1726220826215,0.04897742,58139.0,58138.0,0.3055285]
[1726220827713,0.04797742,58139.0,58138.0,0.3055285]
[1726220827909,0.04897742,58139.0,58138.0,0.3115285]
[1726220829711,0.04897742,58139.0,58138.0,0.3265545]
[1726220830907,0.04897742,58139.0,58138.0,0.2405485]
[1726220831219,0.16897742,58139.0,58138.0,0.22518579]
[1726220831714,0.16897742,58139.0,58138.0,0.106006]
[1726220832319,0.002,58139.0,58138.0,0.192012]
[1726220837618,0.088005,58139.0,58138.0,0.106006]
[1726220837822,0.088005,58139.0,58138.0,0.192012]
[1726220839229,0.002,58139.0,58138.0,0.192012]
[1726220839821,0.002,58139.0,58138.0,0.31133014]
[1726220841226,0.002,58139.0,58138.0,0.45333911]
[1726220842219,0.002,58139.0,58138.0,0.61997071]
[1726220842427,0.004,58145.0,58144.0,0.171994]
[1726220842620,0.2392,58146.0,58145.0,0.085996]
[1726220842621,0.2352,58146.0,58145.0,0.085996]
[1726220842928,0.2352,58146.0,58145.0,0.30793535]
[1726220843120,0.2352,58146.0,58145.0,0.20531414]
[1726220844338,0.2362,58146.0,58145.0,0.21131414]
[1726220844727,0.1559,58146.0,58145.0,0.29731014]
[1726220845040,0.1569,58146.0,58145.0,0.39682881]
[1726220847134,0.1569,58146.0,58145.0,0.41203487]
[1726220847323,0.1569,58146.0,58145.0,0.32603887]
[1726220848938,0.1569,58146.0,58145.0,0.41138656]
[1726220849139,0.1569,58146.0,58145.0,0.29254575]
[1726220849931,0.1569,58146.0,58145.0,0.41127991]
[1726220850243,0.1569,58146.0,58145.0,0.32528391]
[1726220852345,0.1569,58146.0,58145.0,0.20654975]
[1726220853745,0.242894,58146.0,58145.0,0.20654975]
[1726220854051,0.242894,58146.0,58145.0,0.12120206]
[1726220854052,0.2768461,58146.0,58145.0,0.12120206]
[1726220854345,0.1908521,58146.0,58145.0,0.12120206]
[1726220854534,0.19085121,58146.0,58145.0,0.12120206]
[1726220856045,0.1569,58146.0,58145.0,0.12120206]
[1726220856433,0.242894,58146.0,58145.0,0.12120206]
[1726220857744,0.242894,58146.0,58145.0,0.48200206]
[1726220857941,0.1569,58146.0,58145.0,0.48200206]
[1726220858642,0.39684226,58146.0,58145.0,0.466796]
[1726220858941,0.62033755,58146.0,58145.0,0.3808]
[1726220859148,0.57773087,58146.0,58145.0,0.3808]
[1726220859450,0.73252074,58146.0,58145.0,0.3808]
[1726220859838,0.52494655,58146.0,58145.0,0.3808]
[1726220860144,0.53984033,58146.0,58145.0,0.3808]
[1726220861746,0.53984033,58146.0,58145.0,0.02]
[1726220861947,0.46378178,58146.0,58145.0,0.02]
[1726220876560,0.91057578,58146.0,58145.0,0.0883642]
[1726220876860,1.42653578,58146.0,58145.0,0.02]
[1726220877153,1.72704432,58146.0,58145.0,0.02]
[1726220879054,2.32704786,58146.0,58145.0,0.02]
[1726220879254,2.1023433,58146.0,58145.0,0.02]
[1726220882453,2.10234353,58146.0,58145.0,0.02]
[1726220883865,1.58638353,58146.0,58145.0,0.02]
[1726220884047,0.91057578,58146.0,58145.0,0.02]
[1726220887458,0.54968178,58146.0,58145.0,0.02]
[1726220889266,0.54968178,58146.0,58145.0,0.105996]
[1726220891353,0.01689378,58146.0,58145.0,0.105996]
[1726220891572,0.085989,58150.0,58145.0,0.70570583]
[1726220891861,0.3648,58151.0,58150.0,0.085988]
[1726220891862,0.3608,58151.0,58150.0,0.085988]
[1726220892060,0.43695889,58151.0,58150.0,0.085988]
[1726220892255,0.39484889,58151.0,58150.0,0.085988]
[1726220892769,0.43695889,58151.0,58150.0,0.085988]
[1726220893268,0.39484889,58151.0,58150.0,0.085988]
[1726220893663,0.03504889,58151.0,58150.0,0.095988]
[1726220894170,0.1213215,58151.0,58150.0,0.095988]
[1726220894368,0.15537039,58151.0,58150.0,0.095988]
[1726220894869,0.15637039,58151.0,58150.0,0.103988]
[1726220897255,0.15632867,58151.0,58150.0,0.103988]
[1726220897460,0.24231567,58151.0,58150.0,0.103988]
[1726220897661,0.24231567,58151.0,58150.0,0.11877836]
[1726220898461,0.12199417,58151.0,58150.0,0.11877836]
[1726220898662,0.03600717,58151.0,58150.0,0.11877836]
[1726220898865,0.002,58151.0,58150.0,0.11877836]
[1726220899262,0.002,58151.0,58150.0,0.17002571]
[1726220899574,0.002,58151.0,58150.0,0.11877836]
[1726220899762,0.002,58151.0,58150.0,0.17002571]
[1726220899961,0.002,58151.0,58150.0,0.11877836]
[1726220901164,0.087987,58151.0,58150.0,0.11877836]
[1726220907180,0.12213094,58151.0,58150.0,0.07278182]
[1726220907371,0.21701641,58151.0,58150.0,0.07278182]
[1726220911175,0.40592566,58151.0,58150.0,0.07278182]
[1726220911479,0.21701641,58151.0,58150.0,0.07278182]
[1726220911778,0.22506527,58151.0,58150.0,0.15876982]
[1726220911976,0.13063911,58151.0,58150.0,0.15876982]
[1726220913083,0.13063911,58151.0,58150.0,0.07278182]
[1726220914178,0.087987,58151.0,58150.0,0.1916498]
[1726220917881,0.002,58151.0,58150.0,0.1916498]
[1726220918384,0.087987,58151.0,58150.0,0.1916498]
[1726220919280,0.087987,58151.0,58150.0,0.1906498]
[1726220921293,0.087987,58151.0,58150.0,0.17585944]
[1726220921875,0.087987,58151.0,58150.0,0.17594243]
[1726220922280,0.087987,58151.0,58150.0,0.05699146]
[1726220922480,0.21673982,58151.0,58150.0,0.05699146]
[1726220923183,0.33673982,58151.0,58150.0,0.018]
[1726220923387,0.42272682,58151.0,58150.0,0.018]
[1726220925293,0.33673982,58151.0,58150.0,0.018]
[1726220927689,0.50867025,58151.0,58150.0,0.018]
[1726220928698,0.33673982,58151.0,58150.0,0.018]
[1726220929289,0.207987,58151.0,58150.0,0.13701268]
[1726220930594,0.087987,58151.0,58150.0,0.22300068]
[1726220933197,0.087987,58151.0,58150.0,0.44545934]
[1726220933502,0.002,58151.0,58150.0,0.42898868]
[1726220936103,0.004,58153.0,58152.0,0.257955]
[1726220936303,0.004,58158.0,58157.0,0.085978]
[1726220936609,0.3608,58165.0,58163.0,0.085969]
[1726220936610,0.004,58164.0,58163.0,0.085969]
[1726220936797,0.004,58167.0,58163.0,0.59981268]
[1726220937002,0.004,58167.0,58166.0,0.20538282]
[1726220937196,0.1214,58168.0,58167.0,0.085963]
[1726220937591,0.207362,58168.0,58167.0,0.085963]
[1726220939204,0.213362,58168.0,58167.0,0.086963]
[1726220940004,0.222362,58168.0,58167.0,0.087963]
[1726220940498,0.094962,58168.0,58167.0,0.086963]
[1726220940703,0.086962,58168.0,58167.0,0.085963]
[1726220943411,0.086962,58168.0,58167.0,0.10105918]
[1726220944316,0.0774907,58168.0,58164.0,0.085968]
[1726220944503,0.001,58168.0,58167.0,0.12]
[1726220944698,0.0774913,58168.0,58167.0,0.12]
[1726220944904,0.0774913,58168.0,58167.0,0.205963]
[1726220945309,0.13025499,58168.0,58167.0,0.205963]
[1726220946003,0.21521699,58168.0,58167.0,0.205963]
[1726220946207,0.21521699,58168.0,58167.0,0.085963]
[1726220946713,0.21621699,58168.0,58167.0,0.085963]
[1726220948417,0.085968,58166.0,58165.0,0.085966]
[1726220948601,0.24036393,58166.0,58165.0,0.085966]
[1726220948804,0.33522299,58166.0,58165.0,0.085966]
[1726220949212,0.12925499,58166.0,58163.0,0.39000562]
[1726220949411,0.085959,58164.0,58163.0,0.47596362]
[1726220949612,0.12806397,58164.0,58163.0,0.39000562]
[1726220949814,0.12806397,58164.0,58163.0,0.47596662]
[1726220950016,0.085957,58166.0,58165.0,0.085958]
[1726220950204,0.21402068,58166.0,58165.0,0.205958]
[1726220950408,0.21402068,58166.0,58165.0,0.208958]
[1726220950609,0.21402068,58166.0,58165.0,0.003]
[1726220950610,0.29997768,58166.0,58165.0,0.003]
[1726220950804,0.41997768,58166.0,58165.0,0.003]
[1726220951011,0.50593468,58166.0,58165.0,0.003]
[1726220951211,1.08334868,58166.0,58165.0,0.003]
[1726220951515,1.14344868,58166.0,58165.0,0.003]
[1726220951816,0.62768868,58166.0,58165.0,0.003]
[1726220952012,0.171918,58164.0,58163.0,0.009]
[1726220952216,0.57481321,58164.0,58163.0,0.009]
[1726220952418,0.532718,58164.0,58163.0,0.005]
[1726220952620,0.085968,58158.0,58157.0,0.446769]
[1726220952923,0.085968,58158.0,58157.0,0.085969]
[1726220952924,0.205968,58158.0,58157.0,0.085969]
[1726220953220,0.085971,58156.0,58155.0,0.3608]
[1726220954020,0.085971,58156.0,58155.0,0.446772]
[1726220955315,0.086971,58156.0,58155.0,0.47595659]
[1726220955717,0.087971,58156.0,58155.0,0.48495659]
[1726220959421,0.259913,58156.0,58155.0,0.023]
[1726220959818,0.319813,58156.0,58155.0,0.023]
[1726220962322,1.435653,58156.0,58155.0,0.023]
[1726220967415,1.62543916,58156.0,58155.0,0.023]
[1726220968635,2.34703916,58156.0,58155.0,0.023]
[1726220968938,2.34703914,58156.0,58155.0,0.023]
[1726220973129,1.74703914,58156.0,58155.0,0.023]
[1726220973527,1.74703914,58156.0,58155.0,0.01504583]
[1726220974427,1.557253,58156.0,58155.0,0.01504583]
[1726220975633,0.835653,58156.0,58155.0,0.01504583]
[1726220975834,1.557253,58156.0,58155.0,0.01504583]
[1726220976628,0.835653,58156.0,58155.0,0.01504583]
[1726220976933,1.041413,58156.0,58155.0,0.01504583]
[1726220978838,0.319813,58156.0,58155.0,0.01504583]
[1726220979037,1.041413,58156.0,58155.0,0.01504583]
[1726220980537,0.319813,58156.0,58155.0,0.01504583]
[1726220980732,1.041413,58156.0,58155.0,0.01504583]
[1726220982139,0.319813,58156.0,58155.0,0.01504583]
[1726220982332,0.319813,58156.0,58155.0,0.00985474]
[1726220982333,1.16952367,58156.0,58155.0,0.00985474]
[1726220982531,1.23120002,58156.0,58155.0,0.00985474]
[1726220982728,0.50960002,58156.0,58155.0,0.00985474]
[1726220983028,1.16952367,58156.0,58155.0,0.00985474]
[1726220983230,1.23120002,58156.0,58155.0,0.00985474]
[1726220983731,1.23120003,58156.0,58155.0,0.00985474]
[1726220985841,1.31717103,58156.0,58155.0,0.00985474]